Workbook

Sheet Place_Value
C2: Decimal Place Value (MNU 2-02a MNU 2-03a)
N3: =ROUND(RAND()*(6-1)+1,0) -> 1
E4: =ROUND(RAND()*(9-1)+1,0) -> 6 | F4: =ROUND(RAND()*(9-0)+0,0) -> 5 | H4: =ROUND(RAND()*(9-0)+0,0) -> 5 | I4: 5 | J4: 4 | K4: =ROUND(RAND()*(9-0)+0,0) -> 4 | O4: 1 | P4: Tens of Thousandths
O5: 2 | P5: Thousandths
O6: 3 | P6: Hundredths
C7: What value does the digit have highlighted above ? | O7: 4 | P7: Tenths
C8: ( You need to get the spelling right ! ) | O8: 5 | P8: Units
O9: 6 | P9: Tens
N11: =VLOOKUP(N3,O4:P10,2) -> Tens of Thousandths

Sheet Rounding
C2: Decimal Rounding (MNU 2-02a MNU 2-03a)
P3: =ROUND(RAND()*(4-2)+2,0) -> 2
D4: =O4 -> 787.84 | O4: =ROUND(RAND()*(999-1)+1,P3) -> 787.84 | Q4: =IF(P3=1,TEXT(O4,"0.0"),IF(P2=2,TEXT(O4,"0.00"),TEXT(O4,"0.000"))) -> 787.840
C6: ="Round this number to "&P6&" decimal places." -> Round this number to 1 decimal places. | P6: =P3-1 -> 1
O8: =ROUND(O4,P6) -> 787.8 | Q8: =IF(P6=1,TEXT(O8,"0.0"),IF(P6=2,TEXT(O8,"0.00"),TEXT(O8,"0.000"))) -> 787.8

Sheet Easy_Add_Sub
B2: Addition & Subtraction (MNU 2-02a MNU 2-03a)
E7: =ROUND(RAND()*(999-111)+111,1) -> 584.2 | M7: =ROUND(RAND()*(999-409)+409,1) -> 476.8
E8: + | F8: =ROUND(RAND()*(99-39)+39,1) -> 79.1 | K8: =1 -> 1 | L8: of | M8: - | N8: =ROUND(RAND()*(399-27)+27,1) -> 329.5
C9: =ROUND(RAND()*(10-2)+2,0) -> 5 | G9: =E7+F8 -> 663.3 | K9: =ROUND(RAND()*(10-2)+2,0) -> 3 | O9: =M7-N8 -> 147.3
E11: =ROUND(RAND()*(9999-234)+234,2) -> 1597.03 | M11: =ROUND(RAND()*(9999-4111)+4111,2) -> 8015.75
D12: + | E12: =ROUND(RAND()*(9999-234)+234,2) -> 6541.98 | L12: - | M12: =ROUND(RAND()*(3149-345)+345,2) -> 589.02
C13: =ROUND(RAND()*(10-2)+2,0) -> 6 | G13: =E11+E12 -> 8139.01 | K13: =ROUND(RAND()*(10-2)+2,0) -> 9 | O13: =M11-M12 -> 7426.73

Sheet Add_Sub_Layout
B2: Addition & Subtraction (MNU 2-02a MNU 2-03a)
B7: =ROUND(RAND()*(999-234)+234,1) -> 780.1 | D7: + | E7: =ROUND(RAND()*(999-234)+234,1) -> 450.1 | F7: =5*ROUND(RAND()*(19-1)+1,0) -> 75 | I7: =ROUND(RAND()*(999-411)+411,1) -> 479.8 | L7: - | M7: =ROUND(RAND()*(399-67)+67,1) -> 138.9 | N7: =5*ROUND(RAND()*(19-1)+1,0) -> 30
G8: =B7+E7 -> 1230.2 | O8: =I7-M7 -> 340.9
B11: =ROUND(RAND()*(999-345)+345,2) -> 821.37 | D11: + | E11: =ROUND(RAND()*(9999-234)+234,2) -> 2880.02 | F11: =5*ROUND(RAND()*(19-1)+1,0) -> 80 | I11: =ROUND(RAND()*(9999-1711)+1711,2) -> 6023.57 | L11: - | M11: =ROUND(RAND()*(1499-678)+678,2) -> 1203.18 | N11: =5*ROUND(RAND()*(19-1)+1,0) -> 15
G12: =B11+E11 -> 3701.39 | O12: =I11-M11 -> 4820.39

Sheet Easy_Multiply
B2: Multiplication (MNU 2-02a MNU 2-03a)
E7: =ROUND(RAND()*(999-111)+111,1) -> 805.3 | M7: =ROUND(RAND()*(999-111)+111,1) -> 833.4
E8: x | F8: =ROUND(RAND()*(9-3)+3,0) -> 5 | K8: =1 -> 1 | L8: of | M8: x | N8: =ROUND(RAND()*(9-3)+3,0) -> 5
C9: =ROUND(RAND()*(10-2)+2,0) -> 10 | G9: =E7*F8 -> 4026.5 | K9: =ROUND(RAND()*(10-2)+2,0) -> 4 | O9: =N8*M7 -> 4167
E11: =ROUND(RAND()*(999-111)+111,2) -> 690.57 | M11: =ROUND(RAND()*(999-111)+111,2) -> 261.55
E12: x | F12: =ROUND(RAND()*(9-3)+3,0) -> 6 | M12: x | N12: =ROUND(RAND()*(9-3)+3,0) -> 6
C13: =ROUND(RAND()*(10-2)+2,0) -> 7 | G13: =E11*F12 -> 4143.42 | K13: =ROUND(RAND()*(10-2)+2,0) -> 5 | O13: =M11*N12 -> 1569.3

Sheet Multiply_Layout
B2: Multiplication (MNU 2-02a MNU 2-03a)
B7: =ROUND(RAND()*(99-12)+12,1) -> 14.7 | D7: x | E7: =ROUND(RAND()*(9-2)+2,0) -> 6 | F7: =5*ROUND(RAND()*(19-1)+1,0) -> 25 | I7: =ROUND(RAND()*(99-12)+12,1) -> 57 | L7: x | M7: =ROUND(RAND()*(9-2)+2,0) -> 8 | N7: =5*ROUND(RAND()*(19-1)+1,0) -> 30
G8: =B7*E7 -> 88.2 | O8: =M7*I7 -> 456
B11: =ROUND(RAND()*(999-123)+123,2) -> 401.5 | D11: x | E11: =ROUND(RAND()*(9-2)+2,0) -> 4 | F11: =5*ROUND(RAND()*(19-1)+1,0) -> 50 | I11: =ROUND(RAND()*(9999-2736)+2736,2) -> 6278.67 | L11: x | M11: =ROUND(RAND()*(9-2)+2,0) -> 9 | N11: =5*ROUND(RAND()*(19-1)+1,0) -> 85
G12: =B11*E11 -> 1606 | O12: =M11*I11 -> 56508.03

Sheet Easy_Division
B2: Division (MNU 2-02a MNU 2-03a)
E7: =ROUND(RAND()*(99-11)+11,1) -> 58.8 | M7: =ROUND(RAND()*(99-11)+11,1) -> 85.3
E8: x | F8: =ROUND(RAND()*(9-3)+3,0) -> 5 | K8: =1 -> 1 | L8: of | M8: x | N8: =ROUND(RAND()*(9-3)+3,0) -> 8
C9: =ROUND(RAND()*(10-2)+2,0) -> 5 | G9: =E7*F8 -> 294 | K9: =ROUND(RAND()*(10-2)+2,0) -> 2 | O9: =N8*M7 -> 682.4
D10: =F8 -> 5 | E10: =G9 -> 294 | L10: =N8 -> 8 | M10: =O9 -> 682.4
E11: =ROUND(RAND()*(999-111)+111,2) -> 703.21 | M11: =ROUND(RAND()*(999-111)+111,2) -> 819.32
E12: x | F12: =ROUND(RAND()*(9-3)+3,0) -> 6 | M12: x | N12: =ROUND(RAND()*(9-3)+3,0) -> 4
C13: =ROUND(RAND()*(10-2)+2,0) -> 9 | G13: =E11*F12 -> 4219.26 | K13: =ROUND(RAND()*(10-2)+2,0) -> 2 | O13: =M11*N12 -> 3277.28
D14: =F12 -> 6 | E14: =G13 -> 4219.26 | L14: =N12 -> 4 | M14: =O13 -> 3277.28

Sheet Division_Layout
B2: Division (MNU 2-02a MNU 2-03a)
B7: =E7*G8 -> 360.8 | D7: ÷ | E7: =ROUND(RAND()*(9-2)+2,0) -> 8 | F7: =5*ROUND(RAND()*(19-1)+1,0) -> 30 | I7: =M7*O8 -> 181.2 | L7: ÷ | M7: =ROUND(RAND()*(9-2)+2,0) -> 4 | N7: =5*ROUND(RAND()*(19-1)+1,0) -> 10
G8: =ROUND(RAND()*(99-12)+12,1) -> 45.1 | O8: =ROUND(RAND()*(99-12)+12,1) -> 45.3
B11: =E11*G12 -> 143.8 | D11: ÷ | E11: =ROUND(RAND()*(9-2)+2,0) -> 4 | F11: =5*ROUND(RAND()*(19-1)+1,0) -> 55 | I11: =M11*O12 -> 266.68 | L11: ÷ | M11: =ROUND(RAND()*(9-2)+2,0) -> 4 | N11: =5*ROUND(RAND()*(19-1)+1,0) -> 20
G12: =ROUND(RAND()*(99-12)+12,2) -> 35.95 | O12: =ROUND(RAND()*(99-12)+12,2) -> 66.67

Sheet x10x100x1000
B2: x10 , x100, x1000 (MNU 2-02a MNU 2-03a)
B7: =ROUND(RAND()*(99-11)+11,1) -> 96.6 | D7: x | E7: =POWER(10,ROUND(RAND()*(3-1)+1,0)) -> 1000 | F7: =5*ROUND(RAND()*(19-1)+1,0) -> 75 | I7: =ROUND(RAND()*(999-11)+11,1) -> 449.6 | L7: x | M7: =POWER(10,ROUND(RAND()*(3-1)+1,0)) -> 100 | N7: =5*ROUND(RAND()*(19-1)+1,0) -> 20
G8: =B7*E7 -> 96600 | O8: =M7*I7 -> 44960
B11: =ROUND(RAND()*(99-11)+11,2) -> 89.63 | D11: x | E11: =POWER(10,ROUND(RAND()*(3-1)+1,0)) -> 1000 | F11: =5*ROUND(RAND()*(19-1)+1,0) -> 60 | I11: =ROUND(RAND()*(99-11)+11,3) -> 85.248 | L11: x | M11: =POWER(10,ROUND(RAND()*(3-1)+1,0)) -> 100 | N11: =5*ROUND(RAND()*(19-1)+1,0) -> 85
G12: =B11*E11 -> 89630 | O12: =M11*I11 -> 8524.8

Sheet x20x300
B2: x20 , x300 etc.. (MNU 2-02a MNU 2-03a)
B7: =ROUND(RAND()*(99-11)+1,1) -> 14.3 | D7: x | E7: =ROUND(RAND()*(9-1)+1,0)*POWER(10,ROUND(RAND()*(2-1)+1,0)) -> 200 | F7: =5*ROUND(RAND()*(19-1)+1,0) -> 70 | I7: =ROUND(RAND()*(9-1)+1,0)*POWER(10,ROUND(RAND()*(2-1)+1,0)) -> 10 | L7: x | M7: =ROUND(RAND()*(99-11)+1,1) -> 64.4
G8: =E7*B7 -> 2860 | O8: =M7*I7 -> 644
B11: =ROUND(RAND()*(99-11)+1,2) -> 66.84 | D11: x | E11: =ROUND(RAND()*(9-1)+1,0)*POWER(10,ROUND(RAND()*(2-1)+1,0)) -> 30 | F11: =5*ROUND(RAND()*(19-1)+1,0) -> 75 | I11: =ROUND(RAND()*(9-1)+1,0)*POWER(10,ROUND(RAND()*(2-1)+1,0)) -> 400 | L11: x | M11: =ROUND(RAND()*(99-11)+1,3) -> 14.261
G12: =E11*B11 -> 2005.2 | O12: =I11*M11 -> 5704.4

Sheet Div10 , 100 ,1000
B2: ÷10 , ÷100, ÷1000 (MNU 2-02a MNU 2-03a)
B7: =G8*E7 -> 9780 | D7: ÷ | E7: =POWER(10,ROUND(RAND()*(2-1)+1,0)) -> 100 | F7: =5*ROUND(RAND()*(19-1)+1,0) -> 75 | I7: =O8*M7 -> 49709 | L7: ÷ | M7: =POWER(10,ROUND(RAND()*(3-1)+1,0)) -> 1000 | N7: =5*ROUND(RAND()*(19-1)+1,0) -> 40
G8: =ROUND(RAND()*(99-11)+11,2) -> 97.8 | O8: =ROUND(RAND()*(99-11)+11,3) -> 49.709
B11: =G12*E11 -> 7303 | D11: ÷ | E11: =POWER(10,ROUND(RAND()*(2-1)+1,0)) -> 100 | F11: =5*ROUND(RAND()*(19-1)+1,0) -> 20 | I11: =O12*M11 -> 3597.3 | L11: ÷ | M11: =POWER(10,ROUND(RAND()*(3-1)+1,0)) -> 100 | N11: =5*ROUND(RAND()*(19-1)+1,0) -> 30
G12: =ROUND(RAND()*(99-11)+11,2) -> 73.03 | O12: =ROUND(RAND()*(99-11)+11,3) -> 35.973

Sheet Div 20 , 300
B2: ÷20 , ÷300 etc.. (MNU 2-02a MNU 2-03a)
B7: =E7*G8 -> 35672.7 | D7: ÷ | E7: =ROUND(RAND()*(9-1)+1,0)*POWER(10,ROUND(RAND()*(2-1)+1,0)) -> 700 | F7: =5*ROUND(RAND()*(19-1)+1,0) -> 40 | I7: =O8*M7 -> 3053.95 | L7: ÷ | M7: =ROUND(RAND()*(9-1)+1,0)*POWER(10,ROUND(RAND()*(2-1)+1,0)) -> 50
G8: =ROUND(RAND()*(99-11)+1,3) -> 50.961 | O8: =ROUND(RAND()*(99-11)+1,3) -> 61.079
B11: =E11*G12 -> 4147.57 | D11: ÷ | E11: =ROUND(RAND()*(9-1)+1,0)*POWER(10,ROUND(RAND()*(2-1)+1,0)) -> 70 | F11: =5*ROUND(RAND()*(19-1)+1,0) -> 30 | I11: =O12*M11 -> 532.72 | L11: ÷ | M11: =ROUND(RAND()*(9-1)+1,0)*POWER(10,ROUND(RAND()*(2-1)+1,0)) -> 80
G12: =ROUND(RAND()*(99-11)+1,3) -> 59.251 | O12: =ROUND(RAND()*(99-11)+1,3) -> 6.659
